bitfinex-derivatives/quotes_BTCF0:USTF0_20241223
["timestamp","ask_amount","ask_price","bid_price","bid_amount"]
[1734947644499,0.052112,96037.0,96033.0,0.052114]
[1734947645499,0.14560807,96037.0,96033.0,0.052114]
[1734947645694,0.09349607,96037.0,96033.0,0.052114]
[1734947645897,0.052113,96036.0,96033.0,0.052114]
[1734947646491,0.052113,96036.0,96034.0,0.052113]
[1734947647189,0.052114,96034.0,96033.0,0.01057309]
[1734947647384,0.052114,96034.0,96030.0,0.24993602]
[1734947647994,0.052114,96034.0,96031.0,0.052115]
[1734947648194,0.052114,96034.0,96032.0,0.24993602]
[1734947648195,0.14561007,96034.0,96032.0,0.24993602]
[1734947648802,0.14561007,96034.0,96033.0,0.052114]
[1734947651005,0.09349607,96034.0,96033.0,0.052114]
[1734947652093,0.15372862,96034.0,96032.0,0.24993602]
[1734947652292,0.04811855,96033.0,96032.0,0.24993602]
[1734947652499,0.1243096,96033.0,96032.0,0.24993602]
[1734947653997,0.1243096,96033.0,96026.0,0.187189]
[1734947654189,0.052118,96027.0,96026.0,0.187189]
[1734947655611,0.052118,96027.0,96020.0,0.61229791]
[1734947655612,0.052121,96021.0,96020.0,0.54955089]
[1734947656894,0.14573847,96021.0,96020.0,0.54955089]
[1734947658190,0.052121,96021.0,96020.0,0.36236189]
[1734947658400,0.09361747,96022.0,96020.0,0.41448289]
[1734947659005,0.09361747,96022.0,96021.0,1.5]
[1734947659196,0.09361747,96025.0,96021.0,1.5]
[1734947659396,0.09361747,96025.0,96022.0,0.05212]
[1734947660703,0.09361747,96023.0,96022.0,0.05212]
[1734947661298,0.09361747,96023.0,96022.0,0.05312]
[1734947661704,0.14573747,96023.0,96022.0,0.001]
[1734947662112,0.05212,96023.0,96022.0,0.001]
[1734947664510,0.05212,96023.0,96020.0,0.3608]
[1734947664708,0.05212,96023.0,96022.0,0.001]
[1734947666512,0.14575513,96023.0,96022.0,0.18806923]
[1734947667504,0.14575513,96023.0,96022.0,0.18706923]
[1734947667813,0.14575513,96023.0,96022.0,0.18806923]
[1734947668107,0.05212,96023.0,96022.0,0.001]
[1734947670313,0.00810689,96025.0,96023.0,0.05212]
[1734947671106,0.13293685,96027.0,96023.0,0.05212]
[1734947671304,0.17694696,96028.0,96023.0,0.05212]
[1734947671714,0.052119,96026.0,96023.0,0.05212]
[1734947672811,0.05212,96024.0,96020.0,0.3608]
[1734947673009,0.05212,96024.0,96023.0,0.001]
[1734947673217,0.06022922,96024.0,96023.0,0.001]
[1734947673401,0.05212,96024.0,96023.0,0.001]
[1734947673908,0.06022827,96024.0,96023.0,0.001]
[1734947674111,0.05212,96024.0,96023.0,0.18813705]
[1734947674409,0.06022827,96024.0,96023.0,0.18813705]
[1734947675115,0.05212,96024.0,96023.0,0.18813705]
[1734947675714,0.12482996,96025.0,96023.0,0.18813705]
[1734947675919,0.12482996,96025.0,96023.0,0.24025705]
[1734947676818,0.052118,96026.0,96023.0,0.05312]
[1734947677820,0.06022627,96026.0,96023.0,0.05312]
[1734947678012,0.052118,96026.0,96023.0,0.05312]
[1734947678521,0.06022627,96026.0,96023.0,0.05312]
[1734947679019,0.00810827,96025.0,96023.0,0.05312]
[1734947679216,0.00810827,96024.0,96023.0,0.05312]
[1734947679606,0.052118,96026.0,96023.0,0.05312]
[1734947679812,0.00811983,96025.0,96023.0,0.05312]
[1734947680113,0.00811982,96024.0,96023.0,0.05312]
[1734947681020,0.13294978,96024.0,96023.0,0.05312]
[1734947682520,0.13295624,96024.0,96023.0,0.05312]
[1734947682719,0.12482996,96024.0,96023.0,0.05312]
[1734947682920,0.13295856,96024.0,96023.0,0.05312]
[1734947683121,0.0081286,96024.0,96023.0,0.05312]
[1734947684524,0.052121,96021.0,96020.0,0.3608]
[1734947684731,0.0602496,96021.0,96020.0,0.3608]
[1734947686023,0.06024621,96021.0,96020.0,0.3608]
[1734947687216,0.06024621,96021.0,96020.0,0.3618]
[1734947687525,0.18528177,96021.0,96020.0,0.3618]
[1734947687916,0.13316077,96021.0,96020.0,0.3618]
[1734947689024,0.13316441,96021.0,96020.0,0.3618]
[1734947690019,0.00812885,96021.0,96020.0,0.3618]
[1734947690619,0.12503556,96022.0,96020.0,0.3618]
[1734947690923,0.0081261,96021.0,96020.0,0.3618]
[1734947692927,0.13316166,96021.0,96020.0,0.3618]
[1734947695123,0.1331527,96021.0,96020.0,0.3618]
[1734947697025,0.1331527,96021.0,96020.0,0.3608]
[1734947697234,0.00811714,96021.0,96020.0,0.3618]
[1734947697821,0.00811714,96021.0,96020.0,0.3608]
[1734947698030,0.00811714,96021.0,96020.0,0.3618]
[1734947698332,0.00811714,96021.0,96020.0,0.88523537]
[1734947698524,0.00812345,96021.0,96020.0,0.93735637]
[1734947699822,0.00812345,96021.0,96020.0,0.72609383]
[1734947700933,0.00812535,96021.0,96020.0,0.72609383]
[1734947702737,0.00812535,96021.0,96020.0,0.413921]
[1734947703320,0.00812514,96021.0,96020.0,0.3618]
[1734947703627,0.00812514,96021.0,96020.0,0.413921]
[1734947704829,0.06024614,96021.0,96020.0,0.413921]
[1734947706822,0.06024614,96021.0,96020.0,0.3618]
[1734947707130,0.21392193,96021.0,96019.0,0.31217283]
[1734947707330,0.00812514,96020.0,96015.0,7.42e-05]
[1734947707536,0.052124,96016.0,96015.0,7.42e-05]
[1734947707733,0.06024914,96016.0,96015.0,7.42e-05]
[1734947708840,0.32112537,96016.0,96000.0,0.1]
[1734947709026,0.412932,96001.0,96000.0,0.1]
[1734947709426,0.42103549,96001.0,96000.0,0.1]
[1734947709937,0.42113193,96001.0,96000.0,0.1]
[1734947710132,0.42113193,96001.0,96000.0,0.103]
[1734947710333,0.42113193,96001.0,96000.0,0.106]
[1734947710739,0.42103549,96001.0,96000.0,0.106]
[1734947711037,0.47681694,96001.0,96000.0,0.106]
[1734947711231,0.47681694,96001.0,95977.0,0.0376]
[1734947711434,0.052144,95980.0,95977.0,0.0376]
[1734947711627,7.775e-05,95979.0,95977.0,0.0376]
[1734947712036,0.05222175,95979.0,95977.0,0.0376]
[1734947712434,0.05222175,95979.0,95977.0,0.0456]
[1734947713035,0.05222175,95979.0,95977.0,0.0546]
[1734947714938,0.05222175,95979.0,95978.0,1.5]
[1734947716123,0.05322175,95979.0,95978.0,1.507]
[1734947716339,0.05322175,95979.0,95978.0,1.516]
[1734947717440,0.05322175,95979.0,95978.0,1.508]
[1734947718641,0.05222175,95979.0,95978.0,1.503]
[1734947719330,0.05222175,95979.0,95978.0,0.003]
[1734947719940,0.05222175,95979.0,95978.0,1.503]
[1734947720133,0.05222175,95979.0,95978.0,0.003]
[1734947724141,0.05622175,95979.0,95978.0,0.002]
[1734947724342,0.00407775,95979.0,95968.0,0.01015935]
[1734947724534,0.052147,95973.0,95966.0,1.5030829]
[1734947724735,0.052147,95973.0,95966.0,1.5015629]
[1734947725536,0.052147,95973.0,95968.0,0.001]
[1734947726130,0.052149,95970.0,95968.0,0.001]
[1734947726337,0.05215,95968.0,95966.0,1.51430783]
[1734947726540,0.05215,95968.0,95966.0,1.51278783]
[1734947726736,0.05215,95968.0,95966.0,1.5025629]
[1734947727541,0.05315,95968.0,95966.0,1.5025629]
[1734947727842,0.05315,95968.0,95966.0,1.5015629]
[1734947729041,0.001,95968.0,95966.0,1.5015629]
[1734947729235,0.09335378,95979.0,95966.0,1.5015629]
[1734947729436,0.09335378,95979.0,95971.0,0.052148]
[1734947729642,0.052144,95978.0,95971.0,0.052148]
[1734947730040,0.052145,95977.0,95971.0,0.052148]
[1734947731939,0.052145,95976.0,95971.0,0.052148]
[1734947732339,0.052145,95976.0,95971.0,0.053148]
[1734947732541,0.052145,95976.0,95973.0,0.052147]
[1734947734049,0.053145,95976.0,95973.0,0.052147]
[1734947735151,0.053145,95976.0,95973.0,0.054147]
[1734947735658,0.052145,95976.0,95973.0,0.056147]
[1734947736141,0.052145,95976.0,95973.0,0.055147]
[1734947736842,0.09327603,95974.0,95973.0,0.054147]
[1734947737443,0.10138283,95974.0,95973.0,0.054147]
[1734947737652,0.09327603,95974.0,95973.0,0.054147]
[1734947737949,0.10138283,95974.0,95973.0,0.054147]
[1734947738145,0.09327603,95974.0,95973.0,0.053147]
[1734947738346,0.10138283,95974.0,95973.0,0.053147]
[1734947738654,0.0081068,95974.0,95973.0,0.053147]
[1734947738843,0.00811949,95974.0,95973.0,0.053147]
[1734947740151,0.00811949,95975.0,95973.0,0.053147]
[1734947740454,0.00811949,95974.0,95973.0,0.053147]
[1734947741153,0.16357955,95974.0,95973.0,0.053147]
[1734947742152,0.21572555,95974.0,95973.0,0.053147]
[1734947742459,0.06026549,95974.0,95973.0,0.053147]
[1734947744248,0.06026549,95974.0,95973.0,0.052147]
[1734947744450,0.00811949,95974.0,95973.0,0.053147]
[1734947744755,0.06410369,95974.0,95973.0,0.053147]
[1734947744951,0.06411639,95974.0,95973.0,0.053147]
[1734947745150,0.06511639,95974.0,95973.0,0.052147]
[1734947745354,0.06511634,95974.0,95973.0,0.052147]
[1734947745754,0.06411634,95974.0,95973.0,0.052147]
[1734947746154,0.00813214,95974.0,95973.0,0.053147]
[1734947746451,0.00913214,95974.0,95973.0,0.053147]
[1734947746654,0.16522423,95974.0,95973.0,0.053147]
[1734947747653,0.16522423,95974.0,95973.0,0.052147]
[1734947747855,0.00813214,95974.0,95973.0,0.053147]
[1734947748048,0.00913214,95974.0,95973.0,0.053147]
[1734947748654,0.00913214,95974.0,95973.0,0.052147]
[1734947749453,0.00813214,95974.0,95973.0,0.052147]
[1734947749650,0.01013214,95974.0,95973.0,0.052147]
[1734947750357,0.1291201,95980.0,95979.0,0.052144]
[1734947750556,0.0717201,95980.0,95979.0,0.412944]
[1734947750755,0.052137,95992.0,95991.0,0.052137]
[1734947750949,0.02277792,95998.0,95991.0,0.3608]
[1734947751155,0.00651813,95998.0,95996.0,0.052134]
[1734947751356,0.21751607,96001.0,96000.0,0.052132]
[1734947752459,0.22151607,96001.0,96000.0,0.052132]
[1734947752661,0.004,96001.0,96000.0,0.052132]
[1734947752854,0.008,96001.0,96000.0,0.053132]
[1734947754757,0.008,96001.0,96000.0,0.001]
[1734947755254,0.008,96001.0,95981.0,0.3608]
[1734947755560,0.052142,95983.0,95981.0,0.3608]
[1734947758059,0.055142,95983.0,95981.0,0.3608]
[1734947758757,0.003,95983.0,95981.0,0.412943]
[1734947759664,0.1246663,95982.0,95981.0,0.412943]
[1734947760952,0.002,95982.0,95981.0,0.412943]
[1734947763573,0.002,95982.0,95981.0,0.3608]
[1734947768267,0.002,95982.0,95978.0,0.052144]
[1734947769066,0.12465704,95980.0,95978.0,0.052144]
[1734947769667,0.00803038,95979.0,95978.0,0.052144]
[1734947770455,0.00803038,95981.0,95978.0,0.053144]
[1734947770660,0.054142,95982.0,95978.0,0.053144]
[1734947770661,0.00803038,95980.0,95978.0,0.053144]
[1734947770860,0.00803038,95981.0,95978.0,0.053144]
[1734947771068,0.00803038,95980.0,95978.0,0.053144]
[1734947771267,0.001,95979.0,95978.0,0.052144]
[1734947771458,0.053144,95979.0,95978.0,0.001]
[1734947771666,0.052149,95969.0,95968.0,0.00156]
[1734947771860,0.052149,95969.0,95967.0,0.24976362]
[1734947771861,0.06017938,95969.0,95967.0,0.24976362]
[1734947772069,0.052149,95969.0,95967.0,0.24976362]
[1734947772466,0.00803038,95968.0,95967.0,0.24976362]
[1734947772666,0.052157,95955.0,95954.0,0.24980653]
[1734947772865,0.42098738,95955.0,95954.0,0.24980653]
[1734947773575,0.412957,95955.0,95954.0,0.24980653]
[1734947773869,0.42096033,95955.0,95954.0,0.24980653]
[1734947774073,0.42096033,95955.0,95954.0,0.25580653]
[1734947774074,0.42196033,95955.0,95954.0,0.25580653]
[1734947774260,0.42196022,95955.0,95954.0,0.25580653]
[1734947774570,0.42196022,95955.0,95954.0,0.24980653]
[1734947774767,0.48564989,95955.0,95954.0,0.001]
[1734947775271,0.47764667,95955.0,95954.0,0.001]
[1734947777277,0.21548635,95955.0,95954.0,0.001]
[1734947777475,0.16332935,95955.0,95954.0,0.001]
[1734947777776,0.16332935,95955.0,95950.0,0.0339]
[1734947778077,0.16332935,95955.0,95954.0,1.5]
[1734947778078,0.13224611,95955.0,95954.0,1.5]
[1734947778264,0.13024611,95955.0,95951.0,0.0338]
[1734947778464,0.13224611,95955.0,95951.0,0.0338]
[1734947778871,0.10118653,95955.0,95951.0,0.0338]
[1734947779572,0.09518653,95955.0,95951.0,0.0338]
[1734947779768,0.10018653,95955.0,95951.0,0.0338]
[1734947779969,0.007,95955.0,95951.0,0.0338]
[1734947780166,0.002,95955.0,95951.0,0.0338]
[1734947780375,0.007,95955.0,95951.0,0.0338]
[1734947780871,0.002,95955.0,95951.0,0.0338]
[1734947781076,0.002,95955.0,95951.0,0.0358]
[1734947781471,0.052156,95957.0,95951.0,0.0378]
[1734947781970,0.052156,95957.0,95951.0,0.04825767]
[1734947782670,0.09318653,95959.0,95951.0,0.04625767]
[1734947782877,0.09318653,95959.0,95958.0,0.3608]
[1734947783570,0.14533853,95965.0,95958.0,0.412955]
[1734947783772,0.14533853,95965.0,95959.0,0.0347]
[1734947784879,0.052152,95965.0,95959.0,0.0347]
[1734947785373,0.052152,95965.0,95959.0,0.0367]
[1734947786076,0.09318653,95965.0,95962.0,0.052153]
[1734947786478,0.09318653,95965.0,95963.0,0.052152]
[1734947787274,0.03988653,95965.0,95963.0,0.052152]
[1734947787475,0.12424611,95971.0,95962.0,0.001]
[1734947787669,0.12424611,95971.0,95969.0,0.052149]
[1734947789172,0.41450972,95975.0,95972.0,0.052147]
[1734947790670,0.00156372,95975.0,95973.0,0.052147]
[1734947790971,0.00556372,95975.0,95973.0,0.052147]
[1734947791575,0.004,95975.0,95974.0,0.3608]
[1734947791975,0.12424611,95981.0,95980.0,0.052143]
[1734947793581,0.12424611,95994.0,95989.0,0.052138]
[1734947794381,0.052136,95993.0,95989.0,0.052138]
[1734947796477,0.057136,95993.0,95989.0,0.052138]
[1734947797281,0.059136,95993.0,95989.0,0.052138]
[1734947798873,0.12424611,95998.0,95988.0,0.065]
[1734947799181,0.02627173,96004.0,96002.0,0.052131]
[1734947799375,0.02627173,96004.0,95996.0,0.3608]
[1734947799376,0.18699421,96011.0,96010.0,0.052127]
[1734947800676,0.18799421,96011.0,96010.0,0.052127]
[1734947801279,0.001,96011.0,96010.0,0.053127]
[1734947802777,0.412899,96062.0,96051.0,0.052104]
[1734947802988,0.00156268,96063.0,96010.0,0.57758855]
[1734947802989,0.052101,96059.0,96052.0,0.08342471]
[1734947803576,0.052101,96059.0,96048.0,0.3608]
[1734947803979,0.052101,96059.0,96052.0,0.052104]
[1734947804883,0.053101,96059.0,96052.0,0.052104]
[1734947805387,0.053101,96059.0,96053.0,0.052103]
[1734947805598,0.003,96059.0,96057.0,0.052101]
[1734947805784,0.003,96059.0,96057.0,0.412901]
[1734947806486,0.002,96059.0,96057.0,0.412901]
[1734947806686,0.004,96059.0,96057.0,0.412901]
[1734947807189,0.004,96059.0,96057.0,0.413901]
[1734947807382,0.005,96059.0,96057.0,0.413901]
[1734947812992,0.005,96059.0,96049.0,0.09399864]
[1734947812993,0.3608,96058.0,96049.0,0.01057393]
[1734947813196,0.052114,96034.0,96029.0,0.052116]
[1734947813390,0.44422471,96050.0,96028.0,0.3608]
[1734947813694,0.0353,96033.0,96028.0,0.412917]
[1734947813888,0.0353,96033.0,96028.0,0.3608]
[1734947814094,0.052115,96032.0,96028.0,0.3608]
[1734947814293,0.0353,96033.0,96029.0,0.004]
[1734947814489,0.052116,96030.0,96029.0,0.004]
[1734947815297,0.0353,96033.0,96029.0,0.004]
[1734947815792,0.0353,96033.0,96028.0,0.3648]
[1734947815999,0.0353,96033.0,96028.0,0.3678]
[1734947816290,0.0353,96032.0,96028.0,0.3678]
[1734947816495,0.0353,96032.0,96029.0,0.001]
[1734947818802,0.0353,96032.0,96029.0,0.002]
[1734947819094,0.052116,96031.0,96029.0,0.002]
[1734947819999,0.052116,96031.0,96029.0,0.001]
[1734947820201,0.052116,96031.0,96029.0,0.002]
[1734947820401,0.052116,96031.0,96029.0,0.001]
[1734947820613,0.052116,96030.0,96022.0,0.05212]
[1734947821192,0.052117,96029.0,96022.0,0.05212]
[1734947822292,0.052117,96029.0,96022.0,0.05412]
[1734947822592,0.052117,96029.0,96022.0,0.05612]
[1734947823296,0.0353,96032.0,96022.0,0.004]
[1734947823500,0.05212,96024.0,96022.0,0.004]
[1734947823801,0.3608,96029.0,96019.0,0.00156202]
[1734947823802,0.052121,96020.0,96019.0,0.00156202]
[1734947823993,0.0312,96023.0,96009.0,9.072e-05]
[1734947824187,0.052121,96022.0,96009.0,9.072e-05]
[1734947824397,0.052126,96013.0,96009.0,9.072e-05]
[1734947824595,0.031,96012.0,96009.0,9.072e-05]
[1734947824793,0.083126,96012.0,96009.0,9.072e-05]
[1734947825900,0.083126,96012.0,96009.0,0.00309072]
[1734947826490,0.083126,96012.0,96009.0,0.00509072]
[1734947827204,0.0334,96011.0,96009.0,0.00509072]
[1734947828406,0.00651444,96018.0,96016.0,0.052124]
[1734947828706,0.00651444,96017.0,96009.0,0.05721772]
[1734947828894,0.00651444,96017.0,96009.0,0.05421772]
[1734947829099,0.001,96011.0,96009.0,0.05421772]
[1734947829299,0.001,96011.0,96009.0,0.05221772]
[1734947829506,0.00651444,96015.0,96009.0,0.05221772]
[1734947829698,0.00651444,96017.0,96009.0,9.072e-05]
[1734947829899,0.00651444,96016.0,96010.0,0.052127]
[1734947830104,0.00651444,96017.0,96010.0,0.052127]
[1734947830301,0.00651444,96016.0,96010.0,0.052127]
[1734947830805,0.00651444,96017.0,96010.0,0.052127]
[1734947832107,0.052123,96018.0,96009.0,0.00409072]
[1734947832610,0.052123,96018.0,96009.0,0.00209072]
[1734947832809,0.052124,96016.0,96014.0,0.052124]
[1734947834096,0.052124,96015.0,96009.0,0.00409072]
[1734947834302,0.052124,96015.0,96014.0,0.001]
[1734947835497,0.00651444,96025.0,96024.0,0.052119]
[1734947835802,0.01618802,96050.0,96026.0,0.052118]
[1734947836007,0.01618802,96050.0,96044.0,0.412908]
[1734947836200,0.052102,96056.0,96044.0,0.412908]
[1734947836397,0.21751607,96049.0,96048.0,0.052106]
[1734947836593,0.21751607,96049.0,96044.0,0.34462532]
[1734947836908,0.21751607,96049.0,96048.0,0.052106]
[1734947837806,0.052104,96052.0,96048.0,0.052106]
[1734947838202,0.001,96049.0,96048.0,0.052106]
[1734947838704,0.002,96049.0,96048.0,0.052106]
[1734947839404,0.004,96049.0,96048.0,0.052106]
[1734947839809,0.003,96049.0,96048.0,0.052106]
[1734947840607,0.004,96049.0,96048.0,0.052106]
[1734947841000,0.004,96049.0,96044.0,0.34462532]
[1734947842411,0.002,96049.0,96044.0,0.34462532]
[1734947842909,0.002,96049.0,96046.0,0.052107]
[1734947843411,0.001,96049.0,96046.0,0.052107]
[1734947843612,0.001,96049.0,96048.0,0.3608]
[1734947844105,0.001,96049.0,96043.0,0.052109]
[1734947844915,0.052107,96047.0,96043.0,0.052109]
[1734947846409,0.052107,96047.0,96039.0,0.44422471]
[1734947846602,0.052103,96054.0,96048.0,0.052106]
[1734947846806,0.001,96049.0,96048.0,0.412906]
[1734947847815,0.052103,96054.0,96048.0,0.412906]
[1734947848522,0.001,96049.0,96048.0,0.412906]
[1734947849715,0.004,96049.0,96048.0,0.412906]
[1734947850114,0.003,96049.0,96048.0,0.412906]
[1734947851107,0.003,96049.0,96048.0,0.413906]
[1734947851314,0.052103,96054.0,96048.0,0.413906]
[1734947851514,0.052103,96054.0,96048.0,0.42532917]
[1734947851817,0.052103,96054.0,96049.0,0.052105]
[1734947853117,0.052103,96054.0,96050.0,0.052105]
[1734947853917,0.052104,96053.0,96050.0,0.052105]
[1734947854118,0.052104,96052.0,96050.0,0.052105]
[1734947854317,0.052104,96052.0,96050.0,0.053105]
[1734947855811,0.052104,96052.0,96050.0,0.001]
[1734947857316,0.052104,96052.0,96048.0,0.3608]
[1734947857507,0.052104,96052.0,96050.0,0.001]
[1734947857917,0.055104,96052.0,96050.0,0.001]
[1734947858124,0.055104,96052.0,96048.0,0.3608]
[1734947858313,0.056104,96052.0,96048.0,0.3608]
[1734947858919,0.056104,96052.0,96048.0,0.412906]
[1734947859619,0.053104,96052.0,96048.0,0.412906]
[1734947859819,0.056104,96052.0,96048.0,0.412906]
[1734947862006,0.052105,96051.0,96048.0,0.412906]
[1734947863008,0.004,96052.0,96038.0,0.18659916]
[1734947863318,0.052109,96043.0,96038.0,0.18659916]
[1734947864017,0.052109,96043.0,96037.0,0.052112]
[1734947865017,0.052109,96043.0,96038.0,0.001]
[1734947865518,0.052109,96043.0,96038.0,0.054112]
[1734947865822,0.052109,96043.0,96039.0,0.18659916]
[1734947867114,0.12440985,96042.0,96040.0,0.24866993]
[1734947868324,0.12440985,96042.0,96040.0,0.24966993]
[1734947869522,0.09662864,96043.0,96041.0,0.18715736]
[1734947869824,0.088609,96043.0,96041.0,0.18715736]
[1734947870624,0.088609,96043.0,96040.0,0.18815736]
[1734947870921,0.088609,96043.0,96040.0,0.54795736]
[1734947871519,0.15618688,96045.0,96044.0,0.052108]
[1734947872228,0.16420652,96050.0,96044.0,0.052108]
[1734947872433,0.15618688,96050.0,96049.0,0.3608]
[1734947872621,0.20829188,96050.0,96049.0,0.3608]
[1734947873820,0.052105,96050.0,96049.0,0.3608]
[1734947874431,0.056105,96050.0,96049.0,0.3608]
[1734947878322,0.056105,96050.0,96047.0,0.18704328]
[1734947878323,0.004,96050.0,96047.0,0.18704328]
[1734947878526,0.052106,96048.0,96047.0,0.18704328]
[1734947878727,0.06015524,96048.0,96047.0,0.18704328]
[1734947878927,0.052106,96048.0,96047.0,0.18704328]
[1734947879136,0.06015524,96048.0,96047.0,0.18704328]
[1734947879425,0.052106,96048.0,96047.0,0.18704328]
[1734947879631,0.06015524,96048.0,96047.0,0.18704328]
[1734947879826,0.06015524,96048.0,96044.0,0.18704328]
[1734947879827,0.052108,96045.0,96044.0,0.18704328]
[1734947881028,0.054108,96045.0,96044.0,0.18704328]
[1734947881227,0.054108,96045.0,96043.0,0.18704328]
[1734947882931,0.054108,96045.0,96044.0,0.18704328]
[1734947883534,0.053108,96045.0,96044.0,0.18704328]
[1734947883930,0.001,96045.0,96044.0,0.18704328]
[1734947884135,0.001,96045.0,96041.0,0.3608]
[1734947884136,0.002,96045.0,96041.0,0.3608]
[1734947884332,0.002,96045.0,96044.0,0.052108]
[1734947885338,0.12491518,96047.0,96046.0,0.052107]
[1734947885535,0.13296977,96047.0,96046.0,0.052107]
[1734947885732,0.12491518,96047.0,96046.0,0.052107]
[1734947886132,0.00805459,96050.0,96046.0,0.30155175]
[1734947886439,0.052104,96052.0,96046.0,0.30155175]
[1734947886440,0.052104,96052.0,96049.0,0.3608]
[1734947886635,0.00805841,96051.0,96046.0,0.30155175]
[1734947886940,0.00805841,96050.0,96046.0,0.30155175]
[1734947887141,0.00805841,96049.0,96046.0,0.30155175]
[1734947887335,0.00805841,96048.0,96046.0,0.30155175]
[1734947887638,0.00805841,96047.0,96046.0,0.30155175]
[1734947888035,0.00805841,96047.0,96046.0,0.052107]
[1734947888442,0.00805841,96048.0,96046.0,0.052107]
[1734947888841,0.06016441,96049.0,96046.0,0.052107]
[1734947889243,0.052106,96049.0,96046.0,0.052107]
[1734947889734,0.002,96048.0,96046.0,0.052107]
[1734947890243,0.054106,96049.0,96046.0,0.052107]
[1734947890838,0.002,96048.0,96046.0,0.052107]
[1734947891146,0.002,96048.0,96044.0,0.24944475]
[1734947891346,0.054107,96048.0,96044.0,0.24944475]
[1734947891546,0.052107,96048.0,96044.0,0.24944475]
[1734947892042,0.1249399,96046.0,96044.0,0.24944475]
[1734947892233,0.1770479,96046.0,96044.0,0.24944475]
[1734947893547,0.052109,96044.0,96041.0,0.61024475]
[1734947894341,0.052109,96043.0,96041.0,0.61024475]
[1734947894742,0.052109,96043.0,96041.0,0.61124475]
[1734947895134,0.17706413,96043.0,96041.0,0.61124475]
[1734947896039,0.17706413,96043.0,96041.0,0.25044475]
[1734947896447,0.17706413,96043.0,96041.0,0.24944475]
[1734947897143,0.17706413,96043.0,96041.0,0.25044475]
[1734947897548,0.12495513,96042.0,96041.0,0.25044475]
[1734947898344,0.12495513,96042.0,96041.0,0.25144475]
[1734947900740,0.12495513,96042.0,96041.0,0.002]
[1734947910842,0.12495513,96042.0,96041.0,0.001]
[1734947913754,0.00805252,96045.0,96041.0,0.001]
[1734947913951,0.00805252,96044.0,96042.0,0.05211]
[1734947914148,0.052107,96046.0,96042.0,0.05211]
[1734947914347,0.06015952,96046.0,96042.0,0.05211]
[1734947914652,0.052107,96046.0,96042.0,0.05211]
[1734947914848,0.06015952,96046.0,96042.0,0.05211]
[1734947915150,0.052108,96045.0,96042.0,0.05211]
[1734947915346,0.052108,96045.0,96043.0,0.3608]
[1734947915551,0.00805252,96044.0,96043.0,0.3608]
[1734947916155,0.052108,96045.0,96043.0,0.3608]
[1734947916358,0.052108,96045.0,96043.0,0.412909]
[1734947917048,0.00805252,96046.0,96045.0,0.052108]
[1734947917354,0.00805269,96046.0,96045.0,0.052108]
[1734947918558,0.15618688,96050.0,96049.0,0.052106]
[1734947919059,0.052102,96056.0,96055.0,0.052102]
[1734947919060,0.20828888,96056.0,96055.0,0.052102]
[1734947919355,0.15618688,96056.0,96046.0,0.05469307]
[1734947919551,0.052108,96045.0,96044.0,0.3608]
[1734947919747,0.15618688,96056.0,96041.0,0.31214563]
[1734947919748,0.3608,96050.0,96041.0,0.31214563]
[1734947919951,0.05211,96042.0,96041.0,0.31214563]
[1734947920360,0.06016363,96042.0,96041.0,0.31214563]
[1734947920663,0.05211,96041.0,96037.0,0.37462029]
[1734947922161,0.05211,96041.0,96039.0,0.18705268]
[1734947923657,0.00804333,96040.0,96039.0,0.18705268]
[1734947924960,0.00804333,96040.0,96039.0,0.18805268]
[1734947925462,0.00803977,96040.0,96039.0,0.18805268]
[1734947926661,0.00803977,96040.0,96039.0,0.001]
[1734947927459,0.05211,96041.0,96039.0,0.001]
[1734947928663,0.052112,96038.0,96033.0,0.052114]
[1734947929463,0.052112,96038.0,96034.0,0.18694796]
[1734947930562,0.052112,96038.0,96033.0,0.06370581]
[1734947930563,0.12486906,96036.0,96033.0,0.25065377]
[1734947930952,0.12486906,96036.0,96033.0,0.24965377]
[1734947931454,0.12486906,96036.0,96033.0,0.25065377]
[1734947931770,0.12486906,96036.0,96035.0,0.18694796]
[1734947932458,0.13290525,96036.0,96035.0,0.18694796]
[1734947932761,0.49370525,96036.0,96033.0,0.002]
[1734947933058,0.052116,96030.0,96021.0,0.31175447]
[1734947933257,0.3608,96022.0,96019.0,0.31175447]
[1734947933451,0.052121,96020.0,96019.0,0.31175447]
[1734947934962,0.052126,96012.0,96011.0,0.01036564]
[1734947935263,0.052126,96012.0,96009.0,9.072e-05]
[1734947935558,0.15618688,96020.0,96019.0,0.001]
[1734947935765,0.20830788,96020.0,96019.0,0.001]
[1734947936353,0.052127,96011.0,96009.0,0.0185843]
[1734947937058,0.052127,96011.0,96009.0,0.0135843]
[1734947938055,0.052127,96011.0,96009.0,0.0105843]
[1734947938758,0.052127,96011.0,96009.0,0.0165843]
[1734947939368,0.052127,96011.0,96009.0,0.0115843]
[1734947939753,0.052127,96011.0,96009.0,0.0125843]
[1734947940063,0.052127,96011.0,96009.0,0.0115843]
[1734947940261,0.09350426,96013.0,96011.0,0.052126]
[1734947940563,0.09350426,96014.0,96011.0,0.052126]
[1734947941857,0.09350426,96012.0,96011.0,0.052126]
[1734947942058,0.14563026,96012.0,96010.0,0.3608]
[1734947942270,0.14563026,96012.0,96011.0,0.001]
[1734947942957,0.14563026,96012.0,96011.0,0.002]
[1734947943358,0.052126,96012.0,96011.0,0.002]
[1734947945164,0.052126,96012.0,96010.0,0.3608]
[1734947945964,0.052126,96012.0,96011.0,0.001]
[1734947946167,0.052126,96012.0,96011.0,0.002]
[1734947946860,0.052126,96012.0,96011.0,0.001]
[1734947947669,0.052126,96012.0,96010.0,0.3628]
[1734947948268,0.052126,96012.0,96011.0,0.001]
[1734947948773,0.052126,96012.0,96010.0,0.3608]
[1734947949065,0.052126,96012.0,96010.0,0.3618]
[1734947949271,0.052126,96012.0,96010.0,0.3628]
[1734947949468,0.052126,96012.0,96011.0,0.001]
[1734947950770,0.09350426,96016.0,96011.0,0.001]